bitfinex/quotes_SOLUSD_20250721
["timestamp","ask_amount","ask_price","bid_price","bid_amount"]
[1753099283095,34.32848397,191.31,191.18,0.67]
[1753099283394,16.78468397,191.29,191.19,0.67]
[1753099283589,16.78468397,191.29,191.2,26.0]
[1753099283920,16.78468397,191.32,191.22,26.0]
[1753099284202,16.78468397,191.32,191.26,26.0]
[1753099284365,0.66,191.34,191.27,0.67]
[1753099284561,0.66,191.34,191.26,26.0]
[1753099284562,16.78468397,191.32,191.26,26.0]
[1753099284768,16.78468397,191.32,191.27,0.67]
[1753099284958,16.78468397,191.35,191.27,0.67]
[1753099286007,17.44468397,191.35,191.27,0.67]
[1753099289192,16.78468397,191.33,191.24,0.67]
[1753099289605,16.78468397,191.31,191.24,0.67]
[1753099289796,17.44468397,191.31,191.24,0.67]
[1753099290996,16.78468397,191.29,191.21,1.40604876]
[1753099291201,16.78468397,191.27,191.21,0.73604876]
[1753099291401,16.78468397,191.25,191.21,3.32032058]
[1753099291709,17.45468397,191.25,191.22,26.0]
[1753099292094,12.6755,191.29,191.21,0.73604876]
[1753099292291,16.78468397,191.23,191.21,0.73604876]
[1753099292492,16.78468397,191.23,191.22,26.0]
[1753099292700,16.78468397,191.23,191.21,0.73604876]
[1753099292894,16.78468397,191.24,191.21,0.73604876]
[1753099293125,17.45468397,191.24,191.21,0.73604876]
[1753099293324,16.78468397,191.26,191.22,26.0]
[1753099293617,16.78468397,191.26,191.23,0.7]
[1753099293820,16.78468397,191.28,191.22,26.0]
[1753099294135,0.67,191.26,191.22,26.0]
[1753099295313,0.67,191.26,191.21,0.73604876]
[1753099296292,16.78468397,191.23,191.21,0.73604876]
[1753099296604,16.78468397,191.21,191.1,26.7]
[1753099296911,25.11378397,191.19,191.07,7.9273]
[1753099297086,16.78468397,191.17,191.08,0.7]
[1753099297420,16.78468397,191.17,191.07,15.07531291]
[1753099297584,16.78468397,191.15,191.06,0.7]
[1753099297790,16.78468397,191.13,191.06,0.7]
[1753099298512,16.78468397,191.11,191.09,26.0]
[1753099298713,16.78468397,191.09,191.04,0.7]
[1753099299190,16.78468397,191.14,191.03,15.00652336]
[1753099299391,16.78468397,191.07,191.02,3.3077085]
[1753099299588,16.78468397,191.07,191.03,0.7]
[1753099300216,16.78468397,191.07,190.97,20.3938]
[1753099300217,0.67,191.07,191.05,26.0]
[1753099300429,16.78468397,191.13,191.02,14.79205935]
[1753099300430,16.78468397,191.05,191.02,14.79205935]
[1753099300721,16.78468397,191.05,191.0,26.7]
[1753099300928,0.67,191.05,191.0,26.7]
[1753099301098,16.78468397,191.03,191.0,14.74737935]
[1753099301296,0.67,191.02,190.94,0.71921649]
[1753099301495,16.78468397,191.01,190.95,0.7]
[1753099301696,16.78468397,190.99,190.94,0.71921649]
[1753099301922,16.78468397,190.97,190.94,0.71921649]
[1753099302132,16.78468397,190.99,190.94,0.71921649]
[1753099302294,16.78468397,190.95,190.94,0.71921649]
[1753099302494,17.45468397,190.95,190.94,0.71921649]
[1753099302702,30.04988397,190.95,190.94,0.71921649]
[1753099303336,35.28685699,190.95,190.78,0.7]
[1753099303615,16.78468397,190.93,190.79,0.7]
[1753099303919,16.78468397,190.91,190.79,0.7]
[1753099304125,16.78468397,190.91,190.79,14.64180723]
[1753099304334,16.78468397,190.86,190.73,0.7]
[1753099304509,16.78468397,190.84,190.73,0.7]
[1753099304923,16.78468397,190.82,190.73,0.7]
[1753099305239,16.78468397,190.8,190.72,1.38262747]
[1753099305424,16.78468397,190.8,190.72,0.68262747]
[1753099305625,0.67,190.82,190.73,0.7]
[1753099306133,17.45468397,190.86,190.73,0.7]
[1753099306312,0.67,190.9,190.75,26.0]
[1753099306515,21.297,190.95,190.76,26.7]
[1753099306703,0.67,190.94,190.77,26.7]
[1753099306905,0.67,190.94,190.78,0.7]
[1753099307114,16.78468397,190.93,190.78,0.7]
[1753099307398,0.67,191.0,190.82,26.0]
[1753099307632,0.67,190.99,190.83,0.7]
[1753099308000,16.78468397,190.98,190.82,26.0]
[1753099308211,16.78468397,190.96,190.82,0.7]
[1753099308543,16.78468397,190.96,190.73,10.0]
[1753099308544,16.78468397,190.94,190.69,29.06048397]
[1753099308829,16.78468397,190.92,190.76,0.7]
[1753099309226,26.0,190.98,190.76,0.7]
[1753099309227,16.78468397,190.9,190.76,0.7]
[1753099309601,16.78468397,190.88,190.76,0.7]
[1753099309818,16.78468397,190.86,190.76,0.7]
[1753099310136,16.78468397,190.86,190.72,16.5150607]
[1753099310323,16.78468397,190.84,190.72,16.5150607]
[1753099310505,0.67,190.83,190.75,26.0]
[1753099310904,16.78468397,190.82,190.73,0.7]
[1753099311096,0.67,190.81,190.73,0.7]
[1753099311305,0.67,190.83,190.73,0.7]
[1753099311502,16.78468397,190.82,190.75,26.0]
[1753099313030,16.78468397,190.82,190.75,26.7]
[1753099314303,16.78468397,190.82,190.75,26.0]
[1753099315107,16.78468397,190.82,190.76,0.7]
[1753099315919,16.78468397,190.82,190.75,26.03]
[1753099316228,16.78468397,190.8,190.75,0.03]
[1753099316410,16.78468397,190.8,190.75,26.03]
[1753099316607,16.78468397,190.85,190.75,26.03]
[1753099316938,0.67,190.83,190.75,26.73]
[1753099317133,0.67,190.83,190.75,26.03]
[1753099317511,0.67,190.83,190.75,0.03]
[1753099318208,5.9103092,190.83,190.75,0.03]
[1753099318433,10.67,190.82,190.75,0.03]
[1753099318637,16.78468397,190.81,190.75,0.03]
[1753099318974,17.45468397,190.81,190.75,0.03]
[1753099319103,0.67,190.8,190.75,0.03]
[1753099319441,16.78468397,190.79,190.75,0.03]
[1753099319625,16.78468397,190.77,190.75,0.03]
[1753099319936,17.45468397,190.76,190.75,0.03]
[1753099320238,16.78468397,190.75,190.58,0.68312893]
[1753099320407,17.45468397,190.75,190.59,0.7]
[1753099320738,16.78468397,190.73,190.59,0.7]
[1753099320918,16.65074185,190.73,190.61,26.0]
[1753099321120,21.0463,190.76,190.62,0.7]
[1753099321337,0.69,190.73,190.62,0.7]
[1753099321523,0.69,190.73,190.61,26.0]
[1753099321717,0.69,190.73,190.58,12.64877179]
[1753099321919,26.0,190.72,190.55,0.69]
[1753099322125,36.0,190.72,190.55,0.69]
[1753099322429,0.69,190.71,190.55,3.33549386]
[1753099322643,0.69,190.71,190.56,0.69]
[1753099323036,16.78468397,190.7,190.56,0.69]
[1753099323233,16.78468397,190.7,190.59,26.0]
[1753099323556,9.52198289,190.61,190.32,26.28864152]
[1753099323718,26.0,190.74,190.47,1.05163764]
[1753099323719,8.94836236,190.6,190.47,1.05163764]
[1753099323926,16.78468397,190.6,190.46,17.83632161]
[1753099324142,25.52364255,190.6,190.49,26.0]
[1753099324343,8.90648161,190.57,190.46,2.68471788]
[1753099324641,8.90648161,190.58,190.47,26.0]
[1753099324826,8.90648161,190.59,190.47,26.0]
[1753099325020,8.90648161,190.58,190.47,26.0]
[1753099325345,8.38457719,190.58,190.47,26.0]
[1753099325647,8.38457719,190.58,190.48,0.69]
[1753099325844,8.38457719,190.57,190.48,0.69]
[1753099326020,8.38457719,190.57,190.48,1.32598847]
[1753099326216,16.78468397,190.57,190.49,1.32595509]
[1753099326424,8.38457719,190.54,190.49,0.63595509]
[1753099326730,8.38457719,190.58,190.5,0.69]
[1753099326920,8.38457719,190.57,190.5,1.26642856]
[1753099327121,8.38457719,190.6,190.51,0.69]
[1753099327322,8.38457719,190.65,190.51,0.69]
[1753099327517,8.38457719,190.67,190.51,0.69]
[1753099327735,8.38457719,190.72,190.53,1.61542281]
[1753099327937,8.38457719,190.72,190.57,26.0]
[1753099328117,8.38457719,190.72,190.58,0.69]
[1753099328320,8.38457719,190.68,190.58,0.69]
[1753099328538,8.38457719,190.66,190.58,0.69]
[1753099329039,25.16926116,190.65,190.58,0.69]
[1753099329234,16.78468397,190.63,190.54,0.69]
[1753099329447,8.38457719,190.61,190.54,0.69]
[1753099329619,8.38457719,190.59,190.5,0.57642856]
[1753099329822,16.78468397,190.57,190.5,0.57642856]
[1753099330139,16.78468397,190.54,190.5,0.57642856]
[1753099330339,25.03444517,190.52,190.5,0.57642856]
[1753099330558,8.357614,190.51,190.5,0.57642856]
[1753099330731,9.047614,190.51,190.5,0.57642856]
[1753099331127,8.490034,190.51,190.5,0.57642856]
[1753099332457,25.27471797,190.51,190.5,0.57642856]
[1753099332754,25.07423602,190.51,190.5,0.57642856]
[1753099332926,7.51935927,190.51,190.5,0.57642856]
[1753099333136,7.51935927,190.52,190.5,0.57642856]
[1753099333332,7.51935927,190.52,190.35,2.48064073]
[1753099333333,7.51935927,190.41,190.34,0.69]
[1753099333532,7.51935927,190.39,190.31,0.69]
[1753099333734,24.30404324,190.38,190.37,26.0]
[1753099333933,24.30404324,190.38,190.31,0.69]
[1753099334254,24.30404324,190.38,190.26,2.7331261]
[1753099334255,6.18029952,190.36,190.29,0.69]
[1753099334433,5.91248757,190.36,190.29,13.55139997]
[1753099334757,5.85892518,190.37,190.3,0.69]
[1753099335132,0.69,190.4,190.3,0.69]
[1753099335361,0.69,190.43,190.32,26.0]
[1753099335541,6.54892518,190.43,190.33,0.69]
[1753099335740,5.85892518,190.45,190.33,0.69]
[1753099335947,5.85892518,190.49,190.34,52.1347409]
[1753099336148,5.85892518,190.47,190.35,0.69]
[1753099336348,5.85892518,190.49,190.38,26.0]
[1753099336548,14.2855,190.51,190.4,26.0]
[1753099336769,1.0,190.51,190.41,26.69]
[1753099336941,5.85892518,190.5,190.41,26.69]
[1753099337142,1.0,190.51,190.41,26.69]
[1753099337353,1.0,190.51,190.41,26.0]
[1753099337658,1.0,190.51,190.42,53.55251286]
[1753099337848,1.0,190.51,190.43,0.69]
[1753099338050,1.0,190.51,190.44,26.0]
[1753099338238,1.0,190.51,190.46,26.0]
[1753099338440,1.0,190.51,190.47,0.69]
[1753099338650,1.0,190.51,190.48,0.69]
[1753099338847,1.0,190.51,190.44,26.0]
[1753099338848,1.0,190.51,190.45,0.69]
[1753099339160,1.0,190.51,190.44,26.0]
[1753099339349,1.0,190.51,190.42,0.69]
[1753099339872,5.85892518,190.55,190.46,26.0]
[1753099340432,5.85892518,190.55,190.47,0.69]
[1753099340661,5.85892518,190.6,190.47,0.69]
[1753099340840,0.69,190.61,190.47,0.69]
[1753099341043,12.5733,190.63,190.51,26.0]
[1753099341256,12.5733,190.63,190.52,0.69]
[1753099341475,12.5733,190.63,190.52,26.69]
[1753099341759,12.5733,190.63,190.53,26.69]
[1753099342068,89.8,190.75,190.53,26.69]
[1753099342069,6.54892518,190.68,190.56,26.0]
[1753099342279,5.80117179,190.66,190.57,26.69]
[1753099342571,5.80117179,190.7,190.58,26.69]
[1753099342866,5.80117179,190.69,190.6,26.0]
[1753099343561,12.8014,190.71,190.54,16.78468397]
[1753099343562,12.8014,190.71,190.61,26.69]
[1753099343765,5.80117179,190.69,190.61,26.69]
[1753099344234,13.4914,190.71,190.61,26.69]
[1753099344235,19.29257179,190.71,190.61,26.69]
[1753099344442,13.4914,190.71,190.61,26.69]
[1753099344953,5.80117179,190.69,190.61,26.69]
[1753099345156,12.8014,190.71,190.62,0.69]
[1753099345458,7.8546,190.72,190.62,26.69]
[1753099345667,7.8546,190.72,190.62,26.0]
[1753099345845,7.8546,190.72,190.63,0.69]
[1753099346154,0.06,190.73,190.63,0.69]
[1753099346576,5.80117179,190.71,190.63,0.69]
[1753099347440,0.06,190.73,190.63,0.69]
[1753099347441,5.80117179,190.72,190.63,0.69]
[1753099347662,5.80117179,190.71,190.63,0.69]
[1753099347960,5.80117179,190.72,190.63,26.69]
[1753099348158,5.80117179,190.71,190.63,26.69]
[1753099348661,5.80117179,190.71,190.63,0.69]
[1753099348861,0.69,190.7,190.6,0.69]
[1753099349057,5.80117179,190.69,190.6,0.69]
[1753099349260,6.49117179,190.7,190.6,0.69]
[1753099349459,5.80117179,190.69,190.6,0.69]
[1753099350044,6.49117179,190.7,190.6,0.69]
[1753099350254,5.80117179,190.68,190.57,0.69]
[1753099350565,6.49117179,190.67,190.57,26.69]
[1753099350748,0.69,190.67,190.58,26.0]
[1753099351050,5.80117179,190.72,190.59,27.41842545]
[1753099351263,5.80117179,190.71,190.62,26.0]
[1753099351772,5.80117179,190.71,190.62,0.67]
[1753099351971,5.80117179,190.71,190.58,26.09675639]
[1753099351972,0.69,190.7,190.59,26.67]
[1753099352182,0.69,190.7,190.6,0.67]
[1753099352464,5.80117179,190.69,190.59,26.0]
[1753099352645,5.80117179,190.71,190.6,0.67]
[1753099352844,1e-08,190.73,190.62,26.0]
[1753099353045,5.30850214,190.76,190.63,27.20032202]
[1753099353269,0.06,190.77,190.68,26.0]
[1753099353457,0.06,190.77,190.69,0.67]
[1753099353857,0.06,190.77,190.69,26.67]
[1753099354055,0.06,190.77,190.7,0.67]
[1753099354371,0.06,190.77,190.73,26.0]
[1753099354570,7.906,190.85,190.74,26.67]
[1753099354571,13.21450214,190.85,190.74,26.67]
[1753099354874,7.906,190.85,190.76,26.0]
[1753099355073,5.99850214,190.87,190.69,16.78468397]
[1753099355074,5.99850214,190.87,190.77,26.67]
[1753099355367,17.81720214,190.88,190.78,5.902]
[1753099355670,5.30850214,190.87,190.78,0.67]
[1753099355852,16.78468397,190.86,190.78,2.60166109]
[1753099356053,5.30850214,190.82,190.77,26.0]
[1753099356262,5.30850214,190.83,190.77,26.0]
[1753099356493,5.30850214,190.82,190.77,26.0]
[1753099356862,0.69,190.81,190.77,26.0]
[1753099357275,0.69,190.81,190.72,26.0]
[1753099357276,16.78468397,190.81,190.72,26.0]
[1753099357584,5.30850214,190.78,190.72,2.57335809]
[1753099357753,5.30850214,190.79,190.7,26.67]
[1753099357954,5.30850214,190.8,190.7,26.0]
[1753099358169,5.99850214,190.83,190.71,0.67]
[1753099358479,5.30850214,190.84,190.72,26.1975731]
[1753099358665,5.30850214,190.85,190.75,26.0]
[1753099360287,5.30850214,190.83,190.75,26.0]
[1753099360466,5.30850214,190.79,190.69,2.66396376]
[1753099360776,5.99850214,190.78,190.65,0.67]
[1753099360988,5.30850214,190.76,190.65,0.67]
[1753099361685,5.99850214,190.77,190.65,0.67]
[1753099361889,5.99850214,190.77,190.67,26.0]
[1753099362087,7.8122,190.79,190.68,0.67]
[1753099362088,13.12070214,190.79,190.68,0.67]
[1753099362291,5.30850214,190.78,190.68,0.67]
[1753099362492,5.30850214,190.77,190.68,0.67]
[1753099362666,13.12070214,190.79,190.68,0.67]
[1753099363184,13.12070214,190.79,190.68,3.32523211]
[1753099363367,13.12070214,190.79,190.69,0.67]
[1753099363566,5.99850214,190.8,190.69,0.67]
[1753099363785,5.30850214,190.79,190.69,0.67]
[1753099363963,5.30850214,190.77,190.69,0.67]
[1753099364476,5.99850214,190.78,190.69,0.67]
[1753099364777,5.30850214,190.79,190.69,0.67]
[1753099364981,5.99850214,190.81,190.69,0.67]
[1753099365181,5.30850214,190.79,190.72,26.0]
[1753099365381,5.99850214,190.81,190.72,26.0]
[1753099365690,5.30850214,190.82,190.73,0.67]
[1753099365899,16.78468397,190.85,190.73,0.67]
[1753099365900,5.99850214,190.84,190.73,0.67]
[1753099366086,5.30850214,190.81,190.69,26.67]
[1753099366286,5.30850214,190.78,190.69,0.67]
[1753099366473,0.69,190.77,190.69,0.67]
[1753099366664,0.69,190.77,190.68,2.55622079]
[1753099366867,5.30850214,190.75,190.66,0.67]
[1753099367169,5.30850214,190.76,190.66,0.67]
[1753099367368,5.99850214,190.77,190.66,0.67]
[1753099367590,5.99850214,190.77,190.67,26.0]
[1753099367890,5.99850214,190.77,190.68,0.67]
[1753099368293,5.99850214,190.77,190.68,26.67]
[1753099368466,5.30850214,190.79,190.68,26.0]
[1753099368665,16.78468397,190.82,190.69,0.67]
[1753099368666,5.99850214,190.8,190.69,0.67]
[1753099368994,5.99850214,190.79,190.69,0.67]
[1753099369194,5.30850214,190.77,190.69,0.67]
[1753099370187,5.99850214,190.78,190.69,0.67]
[1753099370497,5.30850214,190.8,190.69,26.0]
[1753099370702,29.67478397,190.76,190.63,13.00864023]
[1753099370989,5.30850214,190.73,190.63,26.67]
[1753099371191,5.30850214,190.74,190.64,0.67]
[1753099371398,5.30850214,190.72,190.65,26.0]
[1753099371569,0.69,190.73,190.65,26.0]
[1753099371770,8.0444,190.75,190.66,0.67]
[1753099371973,31.3245,190.77,190.68,26.0]
[1753099372171,31.3245,190.77,190.69,0.67]
[1753099372969,31.3245,190.77,190.72,26.0]
[1753099373165,31.3245,190.77,190.73,0.67]
[1753099373373,21.1497,190.82,190.74,0.67]
[1753099373676,20.4597,190.82,190.74,0.67]
[1753099374007,0.69,190.85,190.74,26.67]
[1753099374168,5.30850214,190.84,190.74,26.67]
[1753099374369,5.99850214,190.83,190.71,26.0]
[1753099374573,5.30850214,190.82,190.71,26.0]
[1753099374782,0.69,190.81,190.71,26.0]
[1753099374986,0.69,190.81,190.72,26.0]
[1753099375176,5.99850214,190.81,190.7,0.67]
[1753099375380,0.75,190.86,190.74,26.0]
[1753099375587,0.75,190.86,190.75,0.67]
[1753099375969,6.05850214,190.86,190.75,0.67]
[1753099376585,0.75,190.86,190.75,0.67]
[1753099376993,0.75,190.86,190.78,26.0]
[1753099377196,0.06,190.86,190.79,0.67]
[1753099377776,5.30850214,190.84,190.71,0.67]
[1753099377985,5.30850214,190.82,190.71,0.67]
[1753099378304,0.69,190.81,190.71,0.67]
[1753099378510,5.99850214,190.81,190.71,26.0]
[1753099378675,0.69,190.8,190.68,0.67]
[1753099378883,5.30850214,190.79,190.68,0.67]
[1753099379078,30.09658397,190.77,190.65,0.67]
[1753099379301,0.69,190.76,190.65,0.67]
[1753099379499,13.3119,190.77,190.7,26.0]
[1753099379802,13.3119,190.77,190.7,26.67]
[1753099379992,13.3119,190.77,190.7,31.902]
[1753099380195,18.62040214,190.77,190.7,0.67]
[1753099380510,18.62040214,190.77,190.7,26.67]
[1753099380812,0.69,190.78,190.7,26.67]
[1753099381181,8.0524,190.77,190.66,0.67]
[1753099381381,5.30850214,190.75,190.65,26.0]
[1753099381583,0.68,190.74,190.66,26.0]
[1753099381986,0.68,190.74,190.66,31.232]
[1753099382191,0.68,190.74,190.68,0.03]
[1753099382388,8.0524,190.77,190.68,0.03]
[1753099382600,13.2059,190.82,190.68,0.03]
[1753099382601,0.68,190.78,190.68,0.71]
[1753099383587,20.2119,190.76,190.63,11.19511665]
[1753099383802,5.30850214,190.61,190.5,0.68]
[1753099383986,16.78468397,190.65,190.5,0.68]
[1753099383987,5.98850214,190.6,190.5,0.68]
[1753099384183,5.30850214,190.59,190.5,0.68]
[1753099384378,17.70620214,190.59,190.5,0.68]
[1753099384588,12.3977,190.59,190.5,38.00782908]
[1753099384785,12.3977,190.59,190.5,0.68]
[1753099385098,8.0572,190.61,190.5,0.68]
[1753099385300,6.81111153,190.61,190.51,26.0]
[1753099385606,0.68,190.6,190.5,11.46730328]
[1753099385808,5.98850214,190.6,190.5,11.46730328]
[1753099385999,5.73928445,190.6,190.51,26.0]
[1753099386202,6.81111153,190.61,190.6,0.03]
[1753099386396,12.11961367,190.61,190.6,0.03]
[1753099386792,5.30850214,190.64,190.6,0.03]
[1753099386996,12.945,190.65,190.6,0.71]
[1753099387295,12.945,190.65,190.61,0.68]
[1753099387803,5.30850214,190.66,190.6,0.03]
[1753099388005,5.30850214,190.68,190.6,0.03]
[1753099388195,5.30850214,190.62,190.6,0.03]
[1753099388810,5.30850214,190.62,190.5,14.17467567]
[1753099388811,5.30850214,190.57,190.48,2.58347434]
[1753099389033,5.64850214,190.57,190.48,26.68]
[1753099389307,13.2985,190.6,190.49,0.68]
[1753099389308,18.94700214,190.6,190.49,0.68]
[1753099389509,13.6385,190.6,190.49,0.68]
[1753099389813,5.64850214,190.59,190.49,0.68]
[1753099390011,0.34,190.59,190.49,0.68]
[1753099390542,0.34,190.59,190.48,13.55501434]
[1753099390543,16.78468397,190.56,190.48,2.66626416]
[1753099390713,5.36418885,190.55,190.45,29.40886734]
[1753099390914,5.02418885,190.54,190.45,0.68]
[1753099391119,5.02418885,190.55,190.39,0.60346478]
[1753099391334,5.02418885,190.52,190.42,3.40948332]
[1753099391537,0.34,190.54,190.42,0.68]
[1753099391538,5.02418885,190.5,190.42,0.68]
[1753099391839,5.02418885,190.5,190.42,26.68]
[1753099392033,5.02418885,190.5,190.42,0.68]
[1753099392236,4.90339259,190.52,190.42,0.68]
[1753099392431,7.88624075,190.54,190.46,26.0]
[1753099392626,4.44259633,190.58,190.47,0.68]
[1753099392825,17.74109633,190.6,190.51,26.0]
[1753099393021,4.44259633,190.59,190.51,26.68]
[1753099393528,4.44259633,190.59,190.5,26.0]
[1753099394035,4.44259633,190.57,190.47,26.0]
[1753099394745,4.44259633,190.58,190.47,0.68]
[1753099394953,4.44259633,190.58,190.47,26.68]
[1753099395238,13.2985,190.6,190.44,26.0]
[1753099395239,4.44259633,190.54,190.44,26.0]
[1753099395442,4.44259633,190.54,190.43,0.68]
[1753099395627,4.44259633,190.52,190.43,0.68]
[1753099396133,4.44259633,190.5,190.43,0.68]
[1753099396337,4.44259633,190.51,190.43,0.68]
[1753099396519,4.44259633,190.5,190.43,0.68]
[1753099396717,4.44259633,190.52,190.43,26.68]
[1753099396927,4.44259633,190.51,190.43,0.68]
[1753099397123,0.68,190.5,190.42,21.68]
[1753099397327,12.3015,190.49,190.39,11.63956599]
[1753099397531,4.44259633,190.46,190.39,0.60346478]
[1753099397718,4.44259633,190.44,190.39,0.60346478]
[1753099397927,5.12259633,190.44,190.39,0.60346478]
[1753099398328,4.44259633,190.43,190.39,0.60346478]
[1753099398548,0.68,190.43,190.39,0.60346478]
[1753099398740,5.12259633,190.47,190.39,0.60346478]
[1753099399049,4.44259633,190.45,190.39,0.60346478]
[1753099399245,12.3015,190.49,190.4,0.68]
[1753099399446,3.94819737,190.48,190.4,0.68]
[1753099399636,3.94819737,190.48,190.41,26.0]
[1753099399832,12.26551987,190.49,190.41,26.0]
[1753099400048,12.26551987,190.49,190.42,0.68]
[1753099402326,4.62819737,190.48,190.39,0.60346478]
[1753099402525,3.94819737,190.44,190.39,0.60346478]
[1753099402745,3.94819737,190.46,190.39,26.60346478]
[1753099402951,3.94819737,190.46,190.39,0.60346478]
[1753099403132,4.62819737,190.47,190.39,26.60346478]
[1753099403329,4.62819737,190.47,190.39,0.60346478]
[1753099403644,4.62819737,190.47,190.39,26.60346478]
[1753099404027,3.94819737,190.46,190.4,26.0]
[1753099404232,4.62819737,190.47,190.4,26.0]
[1753099404553,4.62819737,190.47,190.39,26.60346478]
[1753099404849,4.62819737,190.47,190.39,26.63346478]
[1753099405037,3.94819737,190.47,190.4,26.68]
[1753099405240,3.94819737,190.46,190.4,26.68]
[1753099405638,3.94819737,190.47,190.4,26.68]
[1753099406041,3.94819737,190.48,190.41,26.0]
[1753099406353,12.32551987,190.49,190.41,26.0]
[1753099406560,16.27371724,190.49,190.42,26.68]
[1753099406863,12.32551987,190.49,190.42,26.68]
[1753099407029,13.00551987,190.49,190.39,29.25011511]
[1753099407235,16.95371724,190.49,190.41,26.0]
[1753099407643,13.00551987,190.49,190.41,26.0]
[1753099407849,13.00551987,190.49,190.4,26.0]
[1753099408053,16.95371724,190.49,190.4,26.0]
[1753099408267,16.95371724,190.49,190.41,0.68]
[1753099408545,16.27371724,190.49,190.42,26.0]
[1753099408743,12.32551987,190.49,190.42,26.0]
[1753099408949,0.06,190.49,190.44,26.0]
[1753099409134,0.06,190.49,190.45,0.68]
[1753099409671,0.74,190.49,190.44,26.0]
[1753099409837,0.06,190.49,190.44,26.0]
[1753099410035,0.68,190.48,190.44,26.0]
[1753099410336,3.94819737,190.43,190.39,3.25011511]
[1753099410539,3.94819737,190.41,190.39,0.63346478]
[1753099410751,3.94819737,190.4,190.39,0.63346478]
[1753099410934,0.68,190.4,190.39,0.63346478]
[1753099411136,4.62819737,190.4,190.39,0.03]
[1753099412140,3.94819737,190.45,190.39,0.03]
[1753099412355,3.84083399,190.43,190.39,0.03]
[1753099412539,3.84083399,190.45,190.39,0.03]
[1753099412866,20.551,190.46,190.4,0.69]
[1753099413376,20.551,190.46,190.4,26.69]
[1753099413377,16.81853399,190.46,190.4,26.69]
[1753099413766,12.9777,190.46,190.4,0.69]
[1753099413965,16.81853399,190.46,190.39,26.03]
[1753099414168,17.05468397,190.45,190.39,26.03]
[1753099414482,3.84083399,190.41,190.39,0.03]
[1753099414655,3.84083399,190.4,190.39,0.03]
[1753099414850,11.67273399,190.4,190.39,0.03]
[1753099415049,12.281,190.36,190.26,0.69]
[1753099415247,12.551,190.36,190.26,0.69]
[1753099415471,3.84083399,190.35,190.26,0.69]
[1753099415855,3.84083399,190.34,190.26,26.69]
[1753099416181,3.84083399,190.33,190.26,0.69]
[1753099416482,3.84083399,190.31,190.26,0.69]
[1753099416651,3.37411118,190.32,190.26,0.69]
[1753099416853,2.90738837,190.31,190.26,0.69]
[1753099417052,2.90738837,190.32,190.26,0.69]
[1753099417272,2.90738837,190.33,190.27,26.0]
[1753099418270,14.97770449,190.36,190.28,0.69]
[1753099418468,2.69670449,190.38,190.28,0.69]
[1753099418677,7.5619,190.4,190.28,53.59331029]
[1753099418869,7.5619,190.4,190.31,26.0]
[1753099419274,7.5619,190.4,190.32,0.69]
[1753099419579,2.69670449,190.38,190.32,0.69]
[1753099420347,7.8319,190.4,190.32,0.69]
[1753099420348,2.69670449,190.39,190.32,0.69]
[1753099420875,7.5619,190.4,190.32,0.69]
[1753099421088,2.69670449,190.45,190.36,26.0]
[1753099421255,8.2536,190.46,190.38,26.0]
[1753099421454,12.8873,190.49,190.4,26.33637356]
[1753099421654,0.06,190.53,190.44,26.0]
[1753099421970,7.8772,190.56,190.46,26.0]
[1753099422568,7.8772,190.56,190.47,0.69]
[1753099422978,7.8772,190.56,190.46,26.0]